{"text_format":"2","workbook":"xlsx","n_sheets":2,"sheets":["ItemConfig","ID分段"],"not_rendered":{"charts":0,"images":0,"macros":0,"external_links":0,"defined_names":1,"comments":0,"pivot_tables":0},"unopened":[],"bounds":{"document_bytes":16777216,"sheet_cells":100000,"run_cost":"one","rows_first":2000,"rows_last":500,"rows_between":2000,"halvings":0,"cell_chars":16384,"cell_head_chars":4096},"cells_cut":0,"cells_raw":0,"read":"whole","date_system":"1900"}

{"sheet":"ItemConfig","index":0,"n_rows":26,"n_cols":22,"rows_kept":26,"cut":false,"hidden":false,"merged":[]}
["ID","itemName",null,"itemDesc",null,"icon","itemTag",null,"quality","stack","isSell","itemParam","rewardsNum","isVisible","isUse","useLimit","useLimtValue","costItemNum","rewardsItems","rewardsItemNums","stack","sort"]
["int","int",null,"int",null,"string","int",null,"int","int","bool","int[]","int","int","bool","int",null,"int","int[]","int[]","int","int"]
[]
["ID1","道具名称\n","道具名\n(查看)","道具说明","道具说明\n(查看)","道具图标","道具分类\n见ID分段",null,"品质\n1.[物品]白\n2.[物品]绿\n3.[物品]蓝\n4.[物品]紫\n5.[物品]橙\n6.[英雄碎片]铜\n7.[英雄碎片]银\n8.[英雄碎片]金\n9.[私物]绿\n10.[私物]紫\n11.[私物]橙\n12.[皮肤]银\n13.[皮肤]金\n14.[物品]红\n99.SSS","堆叠数量\n0.无限","是否出售","按需配置\n装备(职业;位置)","出售金额","进入背包时，是否可见","是否可用","使用限制\n0. 无\n1. 共鸣等级","限制的值","消耗道具数量","获得道具ID","获得道具的数量","堆叠数量\n0.无限","背包内排序"]
[1001,169,"铜钱",162,null,{"$f":"\"icon_item_\"&A5","v":"icon_item_1001"},1,{"$f":"CONCATENATE(VLOOKUP(G5,ID分段!A:B,2,FALSE),\"-\",VLOOKUP(G5,ID分段!A:C,3,FALSE))","v":"资源-货币"},2,0,0,null,0,1,0,null,null,0,0,0,0]
[1002,170,"银锭",163,null,{"$f":"\"icon_item_\"&A6","v":"icon_item_1002"},1,{"$f":"CONCATENATE(VLOOKUP(G6,ID分段!A:B,2,FALSE),\"-\",VLOOKUP(G6,ID分段!A:C,3,FALSE))","v":"资源-货币"},4,0,0,null,0,1,0,null,null,0,0,0,0]
[1003,171,"修为",164,null,"icon_item_1003",1,{"$f":"CONCATENATE(VLOOKUP(G7,ID分段!A:B,2,FALSE),\"-\",VLOOKUP(G7,ID分段!A:C,3,FALSE))","v":"资源-货币"},3,0,0,null,0,1,0,null,null,0,0,0,0]
[1004,null,"金锭",164,null,"icon_item_1004",1,{"$f":"CONCATENATE(VLOOKUP(G8,ID分段!A:B,2,FALSE),\"-\",VLOOKUP(G8,ID分段!A:C,3,FALSE))","v":"资源-货币"},5,0,0,null,0,1,0,null,null,0,0,0,0]
[]
[10001,null,"法宝1",null,null,null,11,{"$f":"CONCATENATE(VLOOKUP(G10,ID分段!A:B,2,FALSE),\"-\",VLOOKUP(G10,ID分段!A:C,3,FALSE))","v":"法宝-本体"},4,0,0,null,0,1,0,null,null,0,0,0,0]
[10002,null,"法宝2",null,null,null,11,{"$f":"CONCATENATE(VLOOKUP(G11,ID分段!A:B,2,FALSE),\"-\",VLOOKUP(G11,ID分段!A:C,3,FALSE))","v":"法宝-本体"},4,0,0,null,0,1,0,null,null,0,0,0,0]
[10003,null,"法宝3",null,null,null,11,{"$f":"CONCATENATE(VLOOKUP(G12,ID分段!A:B,2,FALSE),\"-\",VLOOKUP(G12,ID分段!A:C,3,FALSE))","v":"法宝-本体"},4,0,0,null,0,1,0,null,null,0,0,0,0]
[10004,null,"法宝4",null,null,null,11,{"$f":"CONCATENATE(VLOOKUP(G13,ID分段!A:B,2,FALSE),\"-\",VLOOKUP(G13,ID分段!A:C,3,FALSE))","v":"法宝-本体"},5,0,0,null,0,1,0,null,null,0,0,0,0]
[10005,null,"法宝5",null,null,null,11,{"$f":"CONCATENATE(VLOOKUP(G14,ID分段!A:B,2,FALSE),\"-\",VLOOKUP(G14,ID分段!A:C,3,FALSE))","v":"法宝-本体"},5,0,0,null,0,1,0,null,null,0,0,0,0]
[10006,null,"法宝6",null,null,null,11,{"$f":"CONCATENATE(VLOOKUP(G15,ID分段!A:B,2,FALSE),\"-\",VLOOKUP(G15,ID分段!A:C,3,FALSE))","v":"法宝-本体"},5,0,0,null,0,1,0,null,null,0,0,0,0]
[10007,null,"法宝7",null,null,null,11,{"$f":"CONCATENATE(VLOOKUP(G16,ID分段!A:B,2,FALSE),\"-\",VLOOKUP(G16,ID分段!A:C,3,FALSE))","v":"法宝-本体"},6,0,0,null,0,1,0,null,null,0,0,0,0]
[10008,null,"法宝8",null,null,null,11,{"$f":"CONCATENATE(VLOOKUP(G17,ID分段!A:B,2,FALSE),\"-\",VLOOKUP(G17,ID分段!A:C,3,FALSE))","v":"法宝-本体"},6,0,0,null,0,1,0,null,null,0,0,0,0]
[]
[11001,null,"法宝1",null,null,null,11,{"$f":"CONCATENATE(VLOOKUP(G19,ID分段!A:B,2,FALSE),\"-\",VLOOKUP(G19,ID分段!A:C,3,FALSE))","v":"法宝-本体"},4,0,0,null,0,1,0,null,null,0,0,0,0]
[11002,null,"法宝2",null,null,null,11,{"$f":"CONCATENATE(VLOOKUP(G20,ID分段!A:B,2,FALSE),\"-\",VLOOKUP(G20,ID分段!A:C,3,FALSE))","v":"法宝-本体"},4,0,0,null,0,1,0,null,null,0,0,0,0]
[11003,null,"法宝3",null,null,null,11,{"$f":"CONCATENATE(VLOOKUP(G21,ID分段!A:B,2,FALSE),\"-\",VLOOKUP(G21,ID分段!A:C,3,FALSE))","v":"法宝-本体"},4,0,0,null,0,1,0,null,null,0,0,0,0]
[11004,null,"法宝4",null,null,null,11,{"$f":"CONCATENATE(VLOOKUP(G22,ID分段!A:B,2,FALSE),\"-\",VLOOKUP(G22,ID分段!A:C,3,FALSE))","v":"法宝-本体"},5,0,0,null,0,1,0,null,null,0,0,0,0]
[11005,null,"法宝5",null,null,null,11,{"$f":"CONCATENATE(VLOOKUP(G23,ID分段!A:B,2,FALSE),\"-\",VLOOKUP(G23,ID分段!A:C,3,FALSE))","v":"法宝-本体"},5,0,0,null,0,1,0,null,null,0,0,0,0]
[11006,null,"法宝6",null,null,null,11,{"$f":"CONCATENATE(VLOOKUP(G24,ID分段!A:B,2,FALSE),\"-\",VLOOKUP(G24,ID分段!A:C,3,FALSE))","v":"法宝-本体"},5,0,0,null,0,1,0,null,null,0,0,0,0]
[11007,null,"法宝7",null,null,null,11,{"$f":"CONCATENATE(VLOOKUP(G25,ID分段!A:B,2,FALSE),\"-\",VLOOKUP(G25,ID分段!A:C,3,FALSE))","v":"法宝-本体"},6,0,0,null,0,1,0,null,null,0,0,0,0]
[11008,null,"法宝8",null,null,null,11,{"$f":"CONCATENATE(VLOOKUP(G26,ID分段!A:B,2,FALSE),\"-\",VLOOKUP(G26,ID分段!A:C,3,FALSE))","v":"法宝-本体"},6,0,0,null,0,1,0,null,null,0,0,0,0]

{"sheet":"ID分段","index":1,"n_rows":6,"n_cols":6,"rows_kept":6,"cut":false,"hidden":false,"merged":[]}
["Tag","大类","小类","起始ID","结束ID","已使用"]
[1,"资源","货币",1000,1099]
[2,"资源","材料",1100,1199]
[]
[11,"法宝","本体",10000,10999]
[12,"法宝","碎片",11000,11999]